[Event "Late-Titled-Tuesday-Blitz-April-23-2024"]
[Site "Chess.com"]
[Date "2024.04.23"]
[Round "11"]
[White "chedimir"]
[Black "ChessSwole"]
[Result "1-0"]
[WhiteElo "2502"]
[BlackElo "2667"]
[TimeControl "180+1"]
[EndTime "16:07:48 PDT"]
[Termination "chedimir won on time"]

1. e4 {[%clk 0:03:00.2]} 1... c5 {[%clk 0:02:58.4]} 2. Nf3 {[%clk 0:02:59.7]}
2... Nc6 {[%clk 0:02:57.7]} 3. d4 {[%clk 0:02:58.2]} 3... cxd4 {[%clk
0:02:58.6]} 4. Nxd4 {[%clk 0:02:58.3]} 4... e6 {[%clk 0:02:59.2]} 5. Nc3 {[%clk
0:02:57.1]} 5... Qc7 {[%clk 0:02:58.6]} 6. Be3 {[%clk 0:02:54]} 6... a6 {[%clk
0:02:58.9]} 7. Qd2 {[%clk 0:02:53.6]} 7... Nf6 {[%clk 0:02:58]} 8. f3 {[%clk
0:02:53.5]} 8... Be7 {[%clk 0:02:57.1]} 9. g4 {[%clk 0:02:52.8]} 9... b5 {[%clk
0:02:46.2]} 10. O-O-O {[%clk 0:02:47.2]} 10... Nxd4 {[%clk 0:02:45.2]} 11. Bxd4
{[%clk 0:02:40.1]} 11... Bb7 {[%clk 0:02:42.3]} 12. Kb1 {[%clk 0:02:29]} 12...
b4 {[%clk 0:02:36.7]} 13. Na4 {[%clk 0:02:22.6]} 13... d5 {[%clk 0:02:04.5]} 14.
g5 {[%clk 0:02:15.1]} 14... Nh5 {[%clk 0:01:51.5]} 15. Nb6 {[%clk 0:01:37.5]}
15... Rd8 {[%clk 0:01:41.7]} 16. e5 {[%clk 0:01:20.9]} 16... O-O {[%clk
0:01:27.2]} 17. Qe3 {[%clk 0:01:09.3]} 17... Bc6 {[%clk 0:01:05.7]} 18. Bxa6
{[%clk 0:00:56.8]} 18... Rb8 {[%clk 0:01:01.4]} 19. f4 {[%clk 0:00:47]} 19... g6
{[%clk 0:00:58.6]} 20. Rc1 {[%clk 0:00:40.5]} 20... Qa7 {[%clk 0:00:48.6]} 21.
Be2 {[%clk 0:00:23.4]} 21... Nxf4 {[%clk 0:00:19.9]} 22. Nxd5 {[%clk 0:00:17.3]}
22... Nxd5 {[%clk 0:00:18.5]} 23. Bxa7 {[%clk 0:00:16.8]} 23... Nxe3 {[%clk
0:00:18.9]} 24. Bxb8 {[%clk 0:00:15]} 24... Bxh1 {[%clk 0:00:18.4]} 25. Ba7
{[%clk 0:00:12.6]} 25... Bxg5 {[%clk 0:00:14]} 26. Rxh1 {[%clk 0:00:12.3]} 26...
Ra8 {[%clk 0:00:12.9]} 27. Bd4 {[%clk 0:00:09.5]} 27... Nf5 {[%clk 0:00:10.4]}
28. Bc5 {[%clk 0:00:09]} 28... Rb8 {[%clk 0:00:09.2]} 29. Bd3 {[%clk 0:00:08]}
29... Be3 {[%clk 0:00:08.2]} 30. Bxe3 {[%clk 0:00:05.7]} 30... Nxe3 {[%clk
0:00:09.1]} 31. h4 {[%clk 0:00:05.8]} 31... h5 {[%clk 0:00:08.9]} 32. Re1 {[%clk
0:00:05.1]} 32... Ng2 {[%clk 0:00:07.9]} 33. Re4 {[%clk 0:00:04.5]} 33... Rd8
{[%clk 0:00:06.6]} 34. Kc1 {[%clk 0:00:04.1]} 34... g5 {[%clk 0:00:05.3]} 35.
hxg5 {[%clk 0:00:03.5]} 35... Kg7 {[%clk 0:00:05.5]} 36. Bf1 {[%clk 0:00:03.1]}
1-0

[Event "Late-Titled-Tuesday-Blitz-April-23-2024"]
[Site "Chess.com"]
[Date "2024.04.23"]
[Round "11"]
[White "LiemLe"]
[Black "bascheyaro"]
[Result "1-0"]
[WhiteElo "3072"]
[BlackElo "2842"]
[TimeControl "180+1"]
[EndTime "16:07:50 PDT"]
[Termination "LiemLe won by resignation"]

1. Nf3 {[%clk 0:03:00.9]} 1... d5 {[%clk 0:03:00.2]} 2. e3 {[%clk 0:03:00.7]}
2... Nf6 {[%clk 0:03:00.7]} 3. c4 {[%clk 0:03:01.4]} 3... c6 {[%clk 0:03:01.1]}
4. Nc3 {[%clk 0:03:01.6]} 4... a6 {[%clk 0:03:01.1]} 5. b3 {[%clk 0:03:01.5]}
5... Bf5 {[%clk 0:03:01]} 6. Bb2 {[%clk 0:02:59.3]} 6... e6 {[%clk 0:03:01.1]}
7. Nh4 {[%clk 0:02:50.4]} 7... Bg6 {[%clk 0:03:01.4]} 8. Nxg6 {[%clk 0:02:48.9]}
8... hxg6 {[%clk 0:03:02.3]} 9. g3 {[%clk 0:02:46.5]} 9... Nbd7 {[%clk
0:03:02.3]} 10. d4 {[%clk 0:02:41.7]} 10... Bb4 {[%clk 0:02:35.3]} 11. a3 {[%clk
0:02:41.5]} 11... Bxc3+ {[%clk 0:02:35.7]} 12. Bxc3 {[%clk 0:02:42.4]} 12... Ne4
{[%clk 0:02:36.2]} 13. Bb2 {[%clk 0:02:42.9]} 13... Qf6 {[%clk 0:02:36.7]} 14.
Qe2 {[%clk 0:02:41]} 14... g5 {[%clk 0:02:32.4]} 15. Bg2 {[%clk 0:02:40]} 15...
Qf5 {[%clk 0:02:30.3]} 16. f3 {[%clk 0:02:30.5]} 16... Nef6 {[%clk 0:02:11.5]}
17. e4 {[%clk 0:02:30.4]} 17... Qg6 {[%clk 0:02:12.1]} 18. e5 {[%clk 0:02:16.6]}
18... Ng8 {[%clk 0:02:11.5]} 19. Bf1 {[%clk 0:02:01.9]} 19... Ne7 {[%clk
0:02:09.9]} 20. Qd2 {[%clk 0:02:00.2]} 20... g4 {[%clk 0:01:53]} 21. Bd3 {[%clk
0:01:52]} 21... Nf5 {[%clk 0:01:53.1]} 22. O-O {[%clk 0:01:42.3]} 22... O-O-O
{[%clk 0:01:15]} 23. cxd5 {[%clk 0:01:24.1]} 23... cxd5 {[%clk 0:00:56.4]} 24.
fxg4 {[%clk 0:01:13]} 24... Qxg4 {[%clk 0:00:57.3]} 25. Rf4 {[%clk 0:01:12.9]}
25... Qh3 {[%clk 0:00:54.1]} 26. Raf1 {[%clk 0:00:40.1]} 26... g6 {[%clk
0:00:35.5]} 27. R1f3 {[%clk 0:00:40.2]} 27... Qh6 {[%clk 0:00:25.8]} 28. g4
{[%clk 0:00:36]} 28... Nh4 {[%clk 0:00:25.7]} 29. Rf2 {[%clk 0:00:36.5]} 29...
Qg5 {[%clk 0:00:16.6]} 30. Be2 {[%clk 0:00:35.2]} 30... Kb8 {[%clk 0:00:14.8]}
31. Bc3 {[%clk 0:00:34.2]} 31... f5 {[%clk 0:00:10.6]} 32. exf6 {[%clk
0:00:33.8]} 32... e5 {[%clk 0:00:09.3]} 33. dxe5 {[%clk 0:00:32.6]} 33... Nxe5
{[%clk 0:00:09.9]} 34. Rd4 {[%clk 0:00:29.9]} 34... Qxd2 {[%clk 0:00:04.3]} 35.
Bxd2 {[%clk 0:00:30.8]} 35... Nf7 {[%clk 0:00:03]} 36. Bf4+ {[%clk 0:00:19.7]}
36... Ka8 {[%clk 0:00:03.5]} 37. Bg3 {[%clk 0:00:20.3]} 37... g5 {[%clk
0:00:03.9]} 38. Bf1 {[%clk 0:00:19]} 38... Ng6 {[%clk 0:00:04.2]} 39. Bg2 {[%clk
0:00:18.9]} 39... Rd7 {[%clk 0:00:04]} 40. Rxd5 {[%clk 0:00:18.8]} 40... Rhd8
{[%clk 0:00:04.1]} 41. Rfd2 {[%clk 0:00:18.9]} 41... Rxd5 {[%clk 0:00:04]} 42.
Rxd5 {[%clk 0:00:19.7]} 42... Re8 {[%clk 0:00:04.7]} 43. Rd7 {[%clk 0:00:19.7]}
43... Nge5 {[%clk 0:00:05.2]} 44. Rxb7 {[%clk 0:00:19]} 1-0

[Event "Late-Titled-Tuesday-Blitz-April-23-2024"]
[Site "Chess.com"]
[Date "2024.04.23"]
[Round "11"]
[White "dropstoneDP"]
[Black "DeTimmerman"]
[Result "1/2-1/2"]
[WhiteElo "2995"]
[BlackElo "2770"]
[TimeControl "180+1"]
[EndTime "16:07:53 PDT"]
[Termination "Game drawn by repetition"]

1. e4 {[%clk 0:03:00.9]} 1... e5 {[%clk 0:02:59.6]} 2. Nf3 {[%clk 0:03:00.9]}
2... Nc6 {[%clk 0:02:59.7]} 3. Bc4 {[%clk 0:03:01.4]} 3... Nf6 {[%clk
0:03:00.1]} 4. d3 {[%clk 0:03:01.3]} 4... Be7 {[%clk 0:03:00.6]} 5. Nc3 {[%clk
0:03:01.1]} 5... O-O {[%clk 0:03:01.1]} 6. a3 {[%clk 0:03:01.6]} 6... d6 {[%clk
0:03:01.5]} 7. h3 {[%clk 0:03:02.2]} 7... Kh8 {[%clk 0:03:01.6]} 8. Be3 {[%clk
0:02:59.1]} 8... Ng8 {[%clk 0:03:01.9]} 9. Nd5 {[%clk 0:02:56]} 9... f5 {[%clk
0:03:01.7]} 10. exf5 {[%clk 0:02:52.5]} 10... Bxf5 {[%clk 0:03:02.6]} 11. Qd2
{[%clk 0:02:16.6]} 11... Nf6 {[%clk 0:03:01.3]} 12. Ng5 {[%clk 0:02:14.5]} 12...
Nxd5 {[%clk 0:02:47.1]} 13. Bxd5 {[%clk 0:02:15.4]} 13... Bxg5 {[%clk
0:02:29.8]} 14. Bxg5 {[%clk 0:02:16.3]} 14... Qd7 {[%clk 0:02:30.4]} 15. O-O
{[%clk 0:02:13.2]} 15... Be6 {[%clk 0:02:30]} 16. Bxc6 {[%clk 0:02:11.2]} 16...
Qxc6 {[%clk 0:02:29]} 17. Rae1 {[%clk 0:02:11.3]} 17... Rae8 {[%clk 0:02:22.3]}
18. f4 {[%clk 0:02:09.4]} 18... exf4 {[%clk 0:02:20.1]} 19. Rxf4 {[%clk
0:02:09.5]} 19... Rxf4 {[%clk 0:02:13.2]} 20. Qxf4 {[%clk 0:02:08.5]} 20... Bg8
{[%clk 0:02:05.4]} 21. Rxe8 {[%clk 0:01:58.4]} 21... Qxe8 {[%clk 0:02:06.3]} 22.
Qg3 {[%clk 0:01:46.1]} 22... b6 {[%clk 0:02:04.1]} 23. Bd2 {[%clk 0:01:45.6]}
23... Qg6 {[%clk 0:01:55.5]} 24. Qf3 {[%clk 0:01:13]} 24... Qf6 {[%clk 0:01:52]}
25. Qb7 {[%clk 0:01:11.6]} 25... Qxb2 {[%clk 0:01:14.3]} 26. Qxc7 {[%clk
0:01:10.4]} 26... d5 {[%clk 0:01:14.7]} 27. Bc3 {[%clk 0:01:08.4]} 27... Qc1+
{[%clk 0:01:14.6]} 28. Kh2 {[%clk 0:01:08.7]} 28... Qg5 {[%clk 0:01:12.6]} 29.
Be5 {[%clk 0:01:06.3]} 29... h5 {[%clk 0:01:00.7]} 30. d4 {[%clk 0:01:05]} 30...
Be6 {[%clk 0:00:49.2]} 31. Qxa7 {[%clk 0:00:57.8]} 31... Bf5 {[%clk 0:00:49.2]}
32. Qa8+ {[%clk 0:00:34.1]} 32... Kh7 {[%clk 0:00:49.2]} 33. Qxd5 {[%clk
0:00:33.3]} 33... Bxc2 {[%clk 0:00:49.9]} 34. Qf3 {[%clk 0:00:31.8]} 34... Qg6
{[%clk 0:00:44.8]} 35. g4 {[%clk 0:00:23.8]} 35... Be4 {[%clk 0:00:42.4]} 36.
Qe2 {[%clk 0:00:16.8]} 36... hxg4 {[%clk 0:00:41.4]} 37. h4 {[%clk 0:00:17.2]}
37... Qf5 {[%clk 0:00:38.4]} 38. Kg3 {[%clk 0:00:12.2]} 38... Qf3+ {[%clk
0:00:37.4]} 39. Qxf3 {[%clk 0:00:12.4]} 39... gxf3 {[%clk 0:00:38.3]} 40. Kf2
{[%clk 0:00:11.9]} 40... b5 {[%clk 0:00:34.2]} 41. Bf4 {[%clk 0:00:11.3]} 41...
Kg6 {[%clk 0:00:33.5]} 42. Be5 {[%clk 0:00:11.5]} 42... Kf7 {[%clk 0:00:33.6]}
43. Ke3 {[%clk 0:00:10.5]} 43... g6 {[%clk 0:00:31.4]} 44. Kf2 {[%clk
0:00:07.8]} 44... Ke6 {[%clk 0:00:31.5]} 45. Bg7 {[%clk 0:00:08]} 45... Bd5
{[%clk 0:00:31.6]} 46. Bf8 {[%clk 0:00:08]} 46... Bc6 {[%clk 0:00:30.5]} 47. Bg7
{[%clk 0:00:08.1]} 47... Bd5 {[%clk 0:00:30.8]} 48. Bf8 {[%clk 0:00:08.4]} 48...
Bc6 {[%clk 0:00:31.3]} 49. Bg7 {[%clk 0:00:08.9]} 49... Bd5 {[%clk 0:00:31.8]}
1/2-1/2

[Event "Late-Titled-Tuesday-Blitz-April-23-2024"]
[Site "Chess.com"]
[Date "2024.04.23"]
[Round "11"]
[White "Bilan_Danila"]
[Black "1g60-1"]
[Result "1-0"]
[WhiteElo "2566"]
[BlackElo "2451"]
[TimeControl "180+1"]
[EndTime "16:07:53 PDT"]
[Termination "Bilan_Danila won by resignation"]

1. d4 {[%clk 0:03:00.9]} 1... e6 {[%clk 0:02:59.8]} 2. Nf3 {[%clk 0:03:01]} 2...
f5 {[%clk 0:02:59.9]} 3. g3 {[%clk 0:03:01.2]} 3... Nf6 {[%clk 0:03:00.5]} 4.
Bg2 {[%clk 0:03:01.7]} 4... Be7 {[%clk 0:03:01.3]} 5. O-O {[%clk 0:03:02.2]}
5... O-O {[%clk 0:03:02]} 6. c4 {[%clk 0:03:02.7]} 6... d6 {[%clk 0:03:02.5]} 7.
Nc3 {[%clk 0:03:02.7]} 7... Ne4 {[%clk 0:03:02.9]} 8. Qc2 {[%clk 0:03:02.4]}
8... Nxc3 {[%clk 0:03:02.9]} 9. Qxc3 {[%clk 0:03:03.3]} 9... a5 {[%clk
0:03:02.7]} 10. b3 {[%clk 0:03:01.1]} 10... Nc6 {[%clk 0:02:53.9]} 11. Bb2
{[%clk 0:02:52.3]} 11... Bf6 {[%clk 0:02:53.6]} 12. Qc2 {[%clk 0:02:40.4]} 12...
Qe8 {[%clk 0:02:51.4]} 13. e4 {[%clk 0:02:38.6]} 13... Nb4 {[%clk 0:02:48.2]}
14. Qe2 {[%clk 0:02:36.4]} 14... Qh5 {[%clk 0:02:19.2]} 15. e5 {[%clk
0:02:28.2]} 15... Be7 {[%clk 0:02:15.1]} 16. Rfe1 {[%clk 0:02:15.1]} 16... d5
{[%clk 0:02:11]} 17. a3 {[%clk 0:02:13.3]} 17... Na6 {[%clk 0:02:07.7]} 18. cxd5
{[%clk 0:02:10.8]} 18... exd5 {[%clk 0:02:08.6]} 19. Nd2 {[%clk 0:02:06.4]}
19... Qe8 {[%clk 0:01:40.9]} 20. Bxd5+ {[%clk 0:02:04.8]} 20... Kh8 {[%clk
0:01:41.5]} 21. f4 {[%clk 0:01:57.8]} 21... c6 {[%clk 0:01:39.4]} 22. Bf3 {[%clk
0:01:47.6]} 22... Be6 {[%clk 0:01:39.4]} 23. Nc4 {[%clk 0:01:27.4]} 23... Nc7
{[%clk 0:01:33.9]} 24. Nd6 {[%clk 0:01:03.4]} 24... Qb8 {[%clk 0:01:26]} 25. b4
{[%clk 0:01:01.5]} 25... Nd5 {[%clk 0:01:19.4]} 26. b5 {[%clk 0:00:54.2]} 26...
a4 {[%clk 0:00:52]} 27. Rac1 {[%clk 0:00:47.7]} 27... cxb5 {[%clk 0:00:22.7]}
28. Qxb5 {[%clk 0:00:47.1]} 28... b6 {[%clk 0:00:19.7]} 29. Bxd5 {[%clk
0:00:45.5]} 29... Ra5 {[%clk 0:00:19.9]} 30. Bxe6 {[%clk 0:00:20.5]} 30... Rxb5
{[%clk 0:00:18.2]} 31. Nxb5 {[%clk 0:00:21.4]} 31... h6 {[%clk 0:00:12.3]} 32.
d5 {[%clk 0:00:20.7]} 32... Bc5+ {[%clk 0:00:12.2]} 33. Bd4 {[%clk 0:00:20.7]}
33... Qe8 {[%clk 0:00:10.2]} 34. Bxc5 {[%clk 0:00:19.4]} 34... bxc5 {[%clk
0:00:11.1]} 35. Nd6 {[%clk 0:00:18.9]} 35... Qh5 {[%clk 0:00:11.3]} 36. Re3
{[%clk 0:00:12.5]} 36... Qg4 {[%clk 0:00:10.6]} 37. Bxf5 {[%clk 0:00:06.8]}
37... Rxf5 {[%clk 0:00:08.4]} 38. Nxf5 {[%clk 0:00:07.1]} 38... Qxf5 {[%clk
0:00:09.3]} 39. d6 {[%clk 0:00:06.4]} 39... Qe6 {[%clk 0:00:08.7]} 40. Rd1
{[%clk 0:00:04.4]} 40... Qb3 {[%clk 0:00:06.5]} 41. Rxb3 {[%clk 0:00:03.4]}
41... axb3 {[%clk 0:00:07.4]} 42. d7 {[%clk 0:00:04]} 1-0

[Event "Late-Titled-Tuesday-Blitz-April-23-2024"]
[Site "Chess.com"]
[Date "2024.04.23"]
[Round "11"]
[White "Jospem"]
[Black "DanielDardha2005"]
[Result "1-0"]
[WhiteElo "3106"]
[BlackElo "2874"]
[TimeControl "180+1"]
[EndTime "16:07:54 PDT"]
[Termination "Jospem won by resignation"]

1. e4 {[%clk 0:03:00.9]} 1... c5 {[%clk 0:02:59.2]} 2. Nf3 {[%clk 0:03:00.9]}
2... d6 {[%clk 0:02:59.4]} 3. c3 {[%clk 0:03:01.6]} 3... Nf6 {[%clk 0:02:59.1]}
4. h3 {[%clk 0:03:02.4]} 4... Bd7 {[%clk 0:02:53.4]} 5. Bd3 {[%clk 0:03:02.5]}
5... Bc6 {[%clk 0:02:51.5]} 6. Qe2 {[%clk 0:03:02.8]} 6... Nbd7 {[%clk
0:02:51.4]} 7. Bc2 {[%clk 0:03:03.3]} 7... e5 {[%clk 0:02:51.2]} 8. d4 {[%clk
0:03:03.3]} 8... exd4 {[%clk 0:02:41.9]} 9. cxd4 {[%clk 0:03:04.2]} 9... cxd4
{[%clk 0:02:28.4]} 10. Nxd4 {[%clk 0:03:05.1]} 10... Be7 {[%clk 0:02:24.9]} 11.
Nc3 {[%clk 0:03:04.9]} 11... O-O {[%clk 0:02:24.9]} 12. O-O {[%clk 0:03:05]}
12... Re8 {[%clk 0:02:23.2]} 13. Rd1 {[%clk 0:03:02]} 13... Bf8 {[%clk
0:02:22.9]} 14. Nxc6 {[%clk 0:03:02.1]} 14... bxc6 {[%clk 0:02:23.8]} 15. Bf4
{[%clk 0:02:49.2]} 15... Ne5 {[%clk 0:02:23.6]} 16. Bb3 {[%clk 0:02:44]} 16...
Qb6 {[%clk 0:02:10.2]} 17. Kh1 {[%clk 0:02:41.6]} 17... a5 {[%clk 0:02:06.4]}
18. Rac1 {[%clk 0:02:31.3]} 18... Qb7 {[%clk 0:01:57.4]} 19. Bg5 {[%clk
0:02:17.6]} 19... Ng6 {[%clk 0:01:49.9]} 20. Bxf6 {[%clk 0:02:11.7]} 20... gxf6
{[%clk 0:01:50.8]} 21. g3 {[%clk 0:02:10.3]} 21... Qb4 {[%clk 0:01:44.8]} 22.
Qc2 {[%clk 0:02:02.6]} 22... Bh6 {[%clk 0:01:33]} 23. Rb1 {[%clk 0:02:02.4]}
23... Qc5 {[%clk 0:01:29.9]} 24. Kg2 {[%clk 0:01:49]} 24... Ra7 {[%clk
0:01:23.8]} 25. Qd3 {[%clk 0:01:37.6]} 25... Rd7 {[%clk 0:01:20.8]} 26. Qd4
{[%clk 0:01:37.6]} 26... Qh5 {[%clk 0:01:03.3]} 27. Re1 {[%clk 0:01:22.6]} 27...
Ne5 {[%clk 0:00:55.4]} 28. Qd1 {[%clk 0:01:19.9]} 28... Qg6 {[%clk 0:00:56.1]}
29. Rf1 {[%clk 0:01:13.7]} 29... Qg7 {[%clk 0:00:25.9]} 30. f4 {[%clk
0:01:13.4]} 30... Ng6 {[%clk 0:00:25.3]} 31. Kh2 {[%clk 0:01:14]} 31... Kh8
{[%clk 0:00:25.2]} 32. Qd3 {[%clk 0:01:12.2]} 32... Rg8 {[%clk 0:00:16.3]} 33.
Ne2 {[%clk 0:01:11.6]} 33... d5 {[%clk 0:00:14.1]} 34. exd5 {[%clk 0:01:10.7]}
34... cxd5 {[%clk 0:00:13.9]} 35. Rbd1 {[%clk 0:01:07.3]} 35... Re7 {[%clk
0:00:11.4]} 36. Bxd5 {[%clk 0:00:54.8]} 36... f5 {[%clk 0:00:11.4]} 37. Nd4
{[%clk 0:00:45.7]} 37... Rd7 {[%clk 0:00:05.1]} 38. Nxf5 {[%clk 0:00:40.5]}
38... Nxf4 {[%clk 0:00:03.4]} 39. gxf4 {[%clk 0:00:23.8]} 39... Qxb2+ {[%clk
0:00:03]} 40. Kh1 {[%clk 0:00:20.5]} 40... Bxf4 {[%clk 0:00:01.2]} 41. Rxf4
{[%clk 0:00:16.8]} 41... f6 {[%clk 0:00:01.6]} 42. Rg4 {[%clk 0:00:16.2]} 42...
Rxg4 {[%clk 0:00:01.3]} 43. hxg4 {[%clk 0:00:17.1]} 43... Qe5 {[%clk 0:00:01.2]}
44. Qd4 {[%clk 0:00:14.9]} 44... Rxd5 {[%clk 0:00:01.4]} 45. Qxd5 {[%clk
0:00:13.9]} 1-0

[Event "Late-Titled-Tuesday-Blitz-April-23-2024"]
[Site "Chess.com"]
[Date "2024.04.23"]
[Round "11"]
[White "chessdjw"]
[Black "Statham_01"]
[Result "1-0"]
[WhiteElo "2781"]
[BlackElo "2553"]
[TimeControl "180+1"]
[EndTime "16:08:08 PDT"]
[Termination "chessdjw won on time"]

1. d4 {[%clk 0:03:00.9]} 1... Nf6 {[%clk 0:02:59.1]} 2. c4 {[%clk 0:03:01]} 2...
e6 {[%clk 0:02:58.9]} 3. Nf3 {[%clk 0:03:00.6]} 3... c5 {[%clk 0:02:56.6]} 4. d5
{[%clk 0:03:00.5]} 4... b5 {[%clk 0:02:57.1]} 5. e4 {[%clk 0:02:56.2]} 5... bxc4
{[%clk 0:02:52.5]} 6. Nc3 {[%clk 0:02:55.2]} 6... d6 {[%clk 0:02:45.5]} 7. Bxc4
{[%clk 0:02:54.6]} 7... e5 {[%clk 0:02:37.7]} 8. O-O {[%clk 0:02:51.7]} 8... Bg4
{[%clk 0:02:36.1]} 9. h3 {[%clk 0:02:50.7]} 9... Bh5 {[%clk 0:02:32.5]} 10. g4
{[%clk 0:02:23.9]} 10... Bg6 {[%clk 0:02:32.7]} 11. Bg5 {[%clk 0:02:24.4]} 11...
Nbd7 {[%clk 0:02:31.3]} 12. Bb5 {[%clk 0:02:22.5]} 12... Be7 {[%clk 0:02:30.1]}
13. Bxf6 {[%clk 0:02:17.7]} 13... Bxf6 {[%clk 0:02:26.6]} 14. Qa4 {[%clk
0:02:18.2]} 14... a6 {[%clk 0:02:06.6]} 15. Bc6 {[%clk 0:02:17.8]} 15... Ra7
{[%clk 0:02:02.8]} 16. Nb5 {[%clk 0:02:11.9]} 16... axb5 {[%clk 0:01:43]} 17.
Qxa7 {[%clk 0:02:10.5]} 17... Bxe4 {[%clk 0:01:42.1]} 18. Nd2 {[%clk 0:02:10.1]}
18... Bd3 {[%clk 0:01:29.8]} 19. Rfe1 {[%clk 0:02:10.6]} 19... h5 {[%clk
0:01:26.6]} 20. Ne4 {[%clk 0:02:05.6]} 20... Be7 {[%clk 0:00:56]} 21. Rad1
{[%clk 0:02:00]} 21... c4 {[%clk 0:00:52.6]} 22. Bxb5 {[%clk 0:01:43.8]} 22...
hxg4 {[%clk 0:00:49.2]} 23. hxg4 {[%clk 0:01:44.7]} 23... Rh4 {[%clk 0:00:46.7]}
24. f3 {[%clk 0:01:44.8]} 24... g6 {[%clk 0:00:20.4]} 25. Rxd3 {[%clk
0:01:36.2]} 25... cxd3 {[%clk 0:00:20.5]} 26. Bxd3 {[%clk 0:01:37.1]} 26... Kf8
{[%clk 0:00:15]} 27. Kg2 {[%clk 0:01:33.1]} 27... Nf6 {[%clk 0:00:14.2]} 28.
Nxf6 {[%clk 0:01:29.9]} 28... Bxf6 {[%clk 0:00:15.1]} 29. Rc1 {[%clk 0:01:17.8]}
29... Kg7 {[%clk 0:00:14.6]} 30. Rc7 {[%clk 0:01:17.4]} 30... Qg8 {[%clk
0:00:10.3]} 31. Rd7 {[%clk 0:01:04.1]} 31... e4 {[%clk 0:00:10.2]} 32. Bxe4
{[%clk 0:01:02.4]} 32... Be5 {[%clk 0:00:10.4]} 33. b4 {[%clk 0:00:49.8]} 33...
Rh2+ {[%clk 0:00:10.4]} 34. Kf1 {[%clk 0:00:47.2]} 34... Rb2 {[%clk 0:00:07]}
35. Qb7 {[%clk 0:00:37.9]} 35... Kf6 {[%clk 0:00:06.9]} 36. b5 {[%clk
0:00:31.5]} 36... Qh7 {[%clk 0:00:05.6]} 37. Rxf7+ {[%clk 0:00:14.1]} 37... Qxf7
{[%clk 0:00:06.5]} 38. g5+ {[%clk 0:00:14.7]} 38... Kg7 {[%clk 0:00:05.3]} 39.
Qxf7+ {[%clk 0:00:13]} 39... Kxf7 {[%clk 0:00:06.2]} 40. a4 {[%clk 0:00:13.5]}
40... Bd4 {[%clk 0:00:04.4]} 41. Ke1 {[%clk 0:00:11.3]} 41... Bb6 {[%clk
0:00:05]} 42. Kd1 {[%clk 0:00:11.6]} 42... Rb4 {[%clk 0:00:04.9]} 43. Bc2 {[%clk
0:00:12]} 43... Rd4+ {[%clk 0:00:04]} 44. Ke2 {[%clk 0:00:12.6]} 44... Rxd5
{[%clk 0:00:04.6]} 45. Bb3 {[%clk 0:00:12.9]} 45... Ke6 {[%clk 0:00:03.8]} 46.
f4 {[%clk 0:00:13.3]} 46... Ba5 {[%clk 0:00:01.6]} 47. Kf3 {[%clk 0:00:13.5]}
1-0

[Event "Late-Titled-Tuesday-Blitz-April-23-2024"]
[Site "Chess.com"]
[Date "2024.04.23"]
[Round "11"]
[White "2Coaches1Profile"]
[Black "manitodeplomo"]
[Result "1-0"]
[WhiteElo "2578"]
[BlackElo "2652"]
[TimeControl "180+1"]
[EndTime "16:08:12 PDT"]
[Termination "2Coaches1Profile won by resignation"]

1. d4 {[%clk 0:03:00.9]} 1... g6 {[%clk 0:02:17.6]} 2. e4 {[%clk 0:02:58.6]}
2... Bg7 {[%clk 0:02:13.7]} 3. Nf3 {[%clk 0:02:59]} 3... c5 {[%clk 0:02:11.2]}
4. c3 {[%clk 0:02:36.3]} 4... cxd4 {[%clk 0:02:10.7]} 5. cxd4 {[%clk 0:02:37.2]}
5... d5 {[%clk 0:02:11.3]} 6. e5 {[%clk 0:02:30.1]} 6... Nh6 {[%clk 0:02:11.8]}
7. Bb5+ {[%clk 0:02:28.8]} 7... Bd7 {[%clk 0:02:09.9]} 8. Bxd7+ {[%clk
0:02:26.4]} 8... Qxd7 {[%clk 0:02:09.4]} 9. O-O {[%clk 0:02:25.6]} 9... O-O
{[%clk 0:02:09.5]} 10. Nc3 {[%clk 0:02:26.3]} 10... Nc6 {[%clk 0:02:09.7]} 11.
h3 {[%clk 0:02:18]} 11... f6 {[%clk 0:02:07]} 12. exf6 {[%clk 0:02:12.2]} 12...
exf6 {[%clk 0:02:07.9]} 13. Bf4 {[%clk 0:02:06.6]} 13... Rad8 {[%clk 0:02:05.7]}
14. Qb3 {[%clk 0:02:04.6]} 14... Nf5 {[%clk 0:02:02.6]} 15. Rad1 {[%clk
0:02:00.8]} 15... g5 {[%clk 0:02:00.7]} 16. Bh2 {[%clk 0:01:59]} 16... h5 {[%clk
0:02:01.3]} 17. Na4 {[%clk 0:01:44.2]} 17... b6 {[%clk 0:01:55.4]} 18. Rd2
{[%clk 0:01:16.8]} 18... g4 {[%clk 0:01:52.2]} 19. hxg4 {[%clk 0:01:15.9]} 19...
hxg4 {[%clk 0:01:53.1]} 20. Ne1 {[%clk 0:01:16.2]} 20... Ncxd4 {[%clk 0:01:53]}
21. Qd1 {[%clk 0:01:16]} 21... Rc8 {[%clk 0:01:47.5]} 22. Nc3 {[%clk 0:00:58.8]}
22... Rc4 {[%clk 0:01:44.9]} 23. Bf4 {[%clk 0:00:34.1]} 23... Ne6 {[%clk
0:00:53.6]} 24. Rxd5 {[%clk 0:00:32.9]} 24... Qc6 {[%clk 0:00:49]} 25. Rxf5
{[%clk 0:00:31.8]} 25... Nxf4 {[%clk 0:00:48.7]} 26. Qxg4 {[%clk 0:00:26.7]}
26... Nd3 {[%clk 0:00:28.6]} 27. Qe2 {[%clk 0:00:16.8]} 27... Ne5 {[%clk
0:00:19.9]} 28. Nd3 {[%clk 0:00:14.3]} 28... Re8 {[%clk 0:00:15.7]} 29. Nxe5
{[%clk 0:00:14]} 29... fxe5 {[%clk 0:00:16.6]} 30. Rd1 {[%clk 0:00:13]} 30... b5
{[%clk 0:00:16.1]} 31. Qh5 {[%clk 0:00:06.9]} 31... Qe6 {[%clk 0:00:12.3]} 32.
Nd5 {[%clk 0:00:06.3]} 32... Rd4 {[%clk 0:00:06.9]} 33. Rxd4 {[%clk 0:00:04]}
33... exd4 {[%clk 0:00:07.8]} 34. Nc7 {[%clk 0:00:03.9]} 34... Qe1+ {[%clk
0:00:07.4]} 35. Kh2 {[%clk 0:00:04.6]} 35... Re5 {[%clk 0:00:06.7]} 36. Nd5
{[%clk 0:00:01.4]} 36... Rxf5 {[%clk 0:00:05.3]} 37. Qxf5 {[%clk 0:00:02.3]}
37... Qe5+ {[%clk 0:00:05.6]} 38. Qxe5 {[%clk 0:00:02.8]} 38... Bxe5+ {[%clk
0:00:06.5]} 39. f4 {[%clk 0:00:03.1]} 39... d3 {[%clk 0:00:07.4]} 40. fxe5
{[%clk 0:00:02.5]} 40... b4 {[%clk 0:00:07.5]} 41. Ne3 {[%clk 0:00:03]} 41... b3
{[%clk 0:00:08.4]} 42. axb3 {[%clk 0:00:03]} 42... Kf7 {[%clk 0:00:08.5]} 43.
Kg3 {[%clk 0:00:03.4]} 43... Ke6 {[%clk 0:00:09.4]} 44. Kf4 {[%clk 0:00:04]}
44... d2 {[%clk 0:00:10.1]} 45. Nd1 {[%clk 0:00:04.1]} 45... a5 {[%clk
0:00:10.9]} 46. g4 {[%clk 0:00:03.9]} 46... Kd5 {[%clk 0:00:11.1]} 47. Ke3
{[%clk 0:00:04.6]} 47... Kxe5 {[%clk 0:00:11.4]} 48. Kxd2 {[%clk 0:00:05.3]}
48... Kf4 {[%clk 0:00:11.9]} 49. Kc3 {[%clk 0:00:06]} 49... Kxg4 {[%clk
0:00:12]} 50. Kc4 {[%clk 0:00:06.9]} 50... Kf3 {[%clk 0:00:12.4]} 51. Kb5 {[%clk
0:00:07.8]} 51... Ke2 {[%clk 0:00:13.3]} 52. Kxa5 {[%clk 0:00:08.4]} 52... Kd2
{[%clk 0:00:14.2]} 53. b4 {[%clk 0:00:09.1]} 53... Kxd1 {[%clk 0:00:15.1]} 54.
b5 {[%clk 0:00:10]} 54... Kc2 {[%clk 0:00:15.6]} 55. b6 {[%clk 0:00:10.9]} 55...
Kxb2 {[%clk 0:00:16.4]} 56. b7 {[%clk 0:00:11.8]} 1-0